[Event "*** Titled Tuesday Blitz"]
[Site "Chess.com"]
[Date "2021.02.16"]
[Round "7"]
[White "alejogarcia1999"]
[Black "dpopadic"]
[Result "1/2-1/2"]
[WhiteElo "2497"]
[BlackElo "2363"]
[TimeControl "180+1"]
[EndTime "11:19:24 PST"]
[Termination "Game drawn by repetition"]

1. d4 {[%clk 0:03:00.9]} 1... Nf6 {[%clk 0:02:59.3]} 2. c4 {[%clk 0:03:01.1]}
2... g6 {[%clk 0:02:59.3]} 3. Nc3 {[%clk 0:03:00.8]} 3... Bg7 {[%clk 0:02:59.9]}
4. e4 {[%clk 0:03:00.8]} 4... d6 {[%clk 0:03:00.6]} 5. h3 {[%clk 0:03:01.2]}
5... O-O {[%clk 0:03:01]} 6. Be3 {[%clk 0:03:01.3]} 6... e5 {[%clk 0:02:57.2]}
7. d5 {[%clk 0:03:01.4]} 7... a5 {[%clk 0:02:57]} 8. g4 {[%clk 0:03:00.7]} 8...
Na6 {[%clk 0:02:57.1]} 9. Nge2 {[%clk 0:02:58.7]} 9... Nd7 {[%clk 0:02:57.2]}
10. Ng3 {[%clk 0:02:57.8]} 10... Ndc5 {[%clk 0:02:57.3]} 11. Bd3 {[%clk
0:02:49.5]} 11... Bd7 {[%clk 0:02:55.5]} 12. Bc2 {[%clk 0:02:46.6]} 12... c6
{[%clk 0:02:55.5]} 13. Qd2 {[%clk 0:02:37.8]} 13... cxd5 {[%clk 0:02:54.9]} 14.
cxd5 {[%clk 0:02:35.1]} 14... b5 {[%clk 0:02:53.8]} 15. a3 {[%clk 0:02:33.5]}
15... Re8 {[%clk 0:02:48.8]} 16. O-O {[%clk 0:02:32.2]} 16... Rc8 {[%clk
0:02:34.6]} 17. Bg5 {[%clk 0:02:18.1]} 17... Bf6 {[%clk 0:02:32.3]} 18. Be3
{[%clk 0:02:05.6]} 18... Bg7 {[%clk 0:02:25.3]} 19. Kg2 {[%clk 0:02:05]} 19...
b4 {[%clk 0:02:04.3]} 20. axb4 {[%clk 0:01:58.5]} 20... Nxb4 {[%clk 0:02:04.2]}
21. Rfc1 {[%clk 0:01:36.6]} 21... Nxc2 {[%clk 0:02:01.8]} 22. Qxc2 {[%clk
0:01:35.6]} 22... a4 {[%clk 0:01:57.7]} 23. Ra3 {[%clk 0:01:28.2]} 23... Nb3
{[%clk 0:01:48.6]} 24. Rd1 {[%clk 0:01:26.4]} 24... Nd4 {[%clk 0:01:40.6]} 25.
Qd3 {[%clk 0:01:24.3]} 25... Rb8 {[%clk 0:01:32.3]} 26. Rd2 {[%clk 0:01:24.4]}
26... Qa5 {[%clk 0:01:13.8]} 27. Nge2 {[%clk 0:01:13.7]} 27... Nb3 {[%clk
0:01:04.3]} 28. Rd1 {[%clk 0:00:56.2]} 28... Rec8 {[%clk 0:01:02.6]} 29. f3
{[%clk 0:00:49.5]} 29... Bf6 {[%clk 0:00:49.1]} 30. g5 {[%clk 0:00:45.3]} 30...
Bd8 {[%clk 0:00:44.9]} 31. h4 {[%clk 0:00:45.2]} 31... Bb6 {[%clk 0:00:41.2]}
32. Nxa4 {[%clk 0:00:20.2]} 32... Bxa4 {[%clk 0:00:35.4]} 33. Nc3 {[%clk
0:00:16.1]} 33... Rxc3 {[%clk 0:00:23.2]} 34. bxc3 {[%clk 0:00:13.4]} 34... Bxe3
{[%clk 0:00:22.8]} 35. Qxe3 {[%clk 0:00:13.3]} 35... Nc5 {[%clk 0:00:22.6]} 36.
Rda1 {[%clk 0:00:12.9]} 36... Qb5 {[%clk 0:00:21.4]} 37. Qd2 {[%clk 0:00:10.1]}
37... Qb2 {[%clk 0:00:20.2]} 38. R1a2 {[%clk 0:00:10.1]} 38... Qxd2+ {[%clk
0:00:18.9]} 39. Rxd2 {[%clk 0:00:10.9]} 39... Rb1 {[%clk 0:00:18.2]} 40. Rda2
{[%clk 0:00:10.5]} 40... Bb3 {[%clk 0:00:14.6]} 41. Ra8+ {[%clk 0:00:10.3]}
41... Kg7 {[%clk 0:00:14.1]} 42. R2a7 {[%clk 0:00:08.7]} 42... Rb2+ {[%clk
0:00:11.9]} 43. Kg3 {[%clk 0:00:08.7]} 43... Nd3 {[%clk 0:00:11.9]} 44. Rb8
{[%clk 0:00:07.8]} 44... Nf4 {[%clk 0:00:11.7]} 45. h5 {[%clk 0:00:06.9]} 45...
gxh5 {[%clk 0:00:10.4]} 46. Rbb7 {[%clk 0:00:05.5]} 46... Rg2+ {[%clk
0:00:09.8]} 47. Kh4 {[%clk 0:00:05.6]} 47... Rh2+ {[%clk 0:00:08.7]} 48. Kg3
{[%clk 0:00:05.7]} 48... Rg2+ {[%clk 0:00:08.9]} 49. Kh4 {[%clk 0:00:06]} 49...
Rh2+ {[%clk 0:00:08.5]} 50. Kg3 {[%clk 0:00:06.2]} 50... Rg2+ {[%clk 0:00:08.3]}
1/2-1/2

[Event "*** Titled Tuesday Blitz"]
[Site "Chess.com"]
[Date "2021.02.16"]
[Round "7"]
[White "Zubrrr"]
[Black "Nils_03"]
[Result "1-0"]
[WhiteElo "2640"]
[BlackElo "2362"]
[TimeControl "180+1"]
[EndTime "11:19:25 PST"]
[Termination "Zubrrr won by resignation"]

1. d4 {[%clk 0:03:00.9]} 1... d5 {[%clk 0:02:59.7]} 2. c4 {[%clk 0:03:00.6]}
2... e6 {[%clk 0:03:00.2]} 3. Nf3 {[%clk 0:03:00.3]} 3... c6 {[%clk 0:03:00.3]}
4. g3 {[%clk 0:03:00.2]} 4... dxc4 {[%clk 0:03:00]} 5. Bg2 {[%clk 0:03:00.3]}
5... b5 {[%clk 0:03:00.4]} 6. O-O {[%clk 0:03:00.6]} 6... Bb7 {[%clk 0:02:59.3]}
7. a4 {[%clk 0:03:00.1]} 7... a6 {[%clk 0:02:58.8]} 8. b3 {[%clk 0:03:00.1]}
8... cxb3 {[%clk 0:02:57.5]} 9. Qxb3 {[%clk 0:03:01]} 9... b4 {[%clk 0:02:50.8]}
10. a5 {[%clk 0:02:58.7]} 10... Nf6 {[%clk 0:02:49.6]} 11. Ne5 {[%clk
0:02:56.7]} 11... Bd6 {[%clk 0:02:47.2]} 12. Nd2 {[%clk 0:02:43.1]} 12... O-O
{[%clk 0:02:29]} 13. Ndc4 {[%clk 0:02:42.7]} 13... Nd5 {[%clk 0:02:25.2]} 14.
Bd2 {[%clk 0:02:39]} 14... c5 {[%clk 0:02:19.9]} 15. Nxd6 {[%clk 0:02:28.1]}
15... Qxd6 {[%clk 0:02:18.7]} 16. Nc4 {[%clk 0:02:28.2]} 16... Qc7 {[%clk
0:02:11.9]} 17. e4 {[%clk 0:02:05.3]} 17... Nc3 {[%clk 0:02:03.6]} 18. Bxc3
{[%clk 0:01:42.5]} 18... bxc3 {[%clk 0:02:04.5]} 19. d5 {[%clk 0:01:42.6]} 19...
Nd7 {[%clk 0:01:50.2]} 20. dxe6 {[%clk 0:01:32.3]} 20... fxe6 {[%clk 0:01:46.5]}
21. Qxc3 {[%clk 0:01:32.3]} 21... Bc6 {[%clk 0:01:39.5]} 22. Rfd1 {[%clk
0:01:29]} 22... Rad8 {[%clk 0:01:33.1]} 23. Rd6 {[%clk 0:01:18.1]} 23... Rfe8
{[%clk 0:01:24.8]} 24. Rad1 {[%clk 0:01:10.5]} 24... Bb5 {[%clk 0:01:23.5]} 25.
Bh3 {[%clk 0:00:42.6]} 25... Nf8 {[%clk 0:01:17.5]} 26. e5 {[%clk 0:00:42.8]}
26... h6 {[%clk 0:00:55.1]} 27. Rxd8 {[%clk 0:00:32.2]} 27... Rxd8 {[%clk
0:00:54.9]} 28. Rxd8 {[%clk 0:00:18.5]} 28... Qxd8 {[%clk 0:00:54.9]} 29. Nd6
{[%clk 0:00:19.2]} 29... Qd7 {[%clk 0:00:36.8]} 30. Qxc5 {[%clk 0:00:18.4]}
30... Qc6 {[%clk 0:00:35.1]} 31. Qxc6 {[%clk 0:00:17.3]} 31... Bxc6 {[%clk
0:00:36]} 32. Bf1 {[%clk 0:00:17.9]} 32... Nd7 {[%clk 0:00:33.2]} 33. Bxa6
{[%clk 0:00:16]} 33... Nxe5 {[%clk 0:00:33.4]} 34. f4 {[%clk 0:00:11.5]} 34...
Nf3+ {[%clk 0:00:31.7]} 35. Kf2 {[%clk 0:00:11.8]} 35... Nxh2 {[%clk 0:00:31.6]}
36. Bb7 {[%clk 0:00:12]} 36... Ng4+ {[%clk 0:00:29.8]} 37. Ke2 {[%clk 0:00:12]}
37... Bxb7 {[%clk 0:00:20.8]} 38. Nxb7 {[%clk 0:00:12.9]} 38... Nf6 {[%clk
0:00:21]} 39. Nd8 {[%clk 0:00:12.4]} 39... Nd7 {[%clk 0:00:16.6]} 40. a6 {[%clk
0:00:10]} 40... Nb6 {[%clk 0:00:15.4]} 41. Nxe6 {[%clk 0:00:07.7]} 41... Kf7
{[%clk 0:00:15.3]} 42. Nc7 {[%clk 0:00:07.8]} 42... Kf6 {[%clk 0:00:15.4]} 43.
a7 {[%clk 0:00:08]} 43... Kf5 {[%clk 0:00:15.3]} 44. Kf3 {[%clk 0:00:07.6]}
44... g5 {[%clk 0:00:15.1]} 45. g4+ {[%clk 0:00:07.5]} 45... Kf6 {[%clk
0:00:14.8]} 46. Nd5+ {[%clk 0:00:06.1]} 46... Nxd5 {[%clk 0:00:13.9]} 47. fxg5+
{[%clk 0:00:06.5]} 47... hxg5 {[%clk 0:00:12.3]} 48. a8=Q {[%clk 0:00:07.4]}
48... Nf4 {[%clk 0:00:11.9]} 49. Qf8+ {[%clk 0:00:06.9]} 49... Kg6 {[%clk
0:00:11.9]} 50. Qf5+ {[%clk 0:00:06.4]} 50... Kh6 {[%clk 0:00:10.9]} 51. Qf6+
{[%clk 0:00:06.9]} 51... Ng6 {[%clk 0:00:11.3]} 52. Ke4 {[%clk 0:00:07.2]} 52...
Kh7 {[%clk 0:00:09.2]} 53. Qxg5 {[%clk 0:00:07.3]} 53... Kg7 {[%clk 0:00:08.1]}
54. Kf5 {[%clk 0:00:07.4]} 1-0

[Event "*** Titled Tuesday Blitz"]
[Site "Chess.com"]
[Date "2021.02.16"]
[Round "7"]
[White "GMKrikor"]
[Black "aa175"]
[Result "1-0"]
[WhiteElo "2807"]
[BlackElo "2608"]
[TimeControl "180+1"]
[EndTime "11:19:26 PST"]
[Termination "GMKrikor won by checkmate"]

1. Nf3 {[%clk 0:03:00.9]} 1... Nf6 {[%clk 0:02:59.9]} 2. c4 {[%clk 0:03:00.3]}
2... g6 {[%clk 0:02:59.4]} 3. Nc3 {[%clk 0:03:00.2]} 3... d5 {[%clk 0:02:59]} 4.
cxd5 {[%clk 0:02:59.8]} 4... Nxd5 {[%clk 0:02:58]} 5. h4 {[%clk 0:03:00.5]} 5...
Bg7 {[%clk 0:02:57.2]} 6. h5 {[%clk 0:02:59.8]} 6... Nc6 {[%clk 0:02:57.6]} 7.
g3 {[%clk 0:02:35.6]} 7... O-O {[%clk 0:02:56.3]} 8. Bg2 {[%clk 0:02:34.8]} 8...
e5 {[%clk 0:02:56.6]} 9. hxg6 {[%clk 0:01:44.7]} 9... hxg6 {[%clk 0:02:56]} 10.
Qb3 {[%clk 0:01:37.9]} 10... Be6 {[%clk 0:02:52.7]} 11. Qa4 {[%clk 0:01:35.7]}
11... f5 {[%clk 0:02:28.3]} 12. d3 {[%clk 0:01:16.1]} 12... e4 {[%clk
0:02:17.9]} 13. Ng5 {[%clk 0:01:12.7]} 13... Nxc3 {[%clk 0:02:10.7]} 14. bxc3
{[%clk 0:01:11.8]} 14... Bxc3+ {[%clk 0:02:07.3]} 15. Kf1 {[%clk 0:01:12.3]}
15... exd3 {[%clk 0:01:20.6]} 16. Nxe6 {[%clk 0:00:52.8]} 16... dxe2+ {[%clk
0:01:18.2]} 17. Kxe2 {[%clk 0:00:53.7]} 17... Qe7 {[%clk 0:01:11.1]} 18. Qc4
{[%clk 0:00:40]} 18... Bxa1 {[%clk 0:01:09]} 19. Be3 {[%clk 0:00:31.2]} 19...
Bd4 {[%clk 0:00:56.9]} 20. Nxd4+ {[%clk 0:00:24.1]} 20... Kg7 {[%clk 0:00:54.3]}
21. Nxc6 {[%clk 0:00:16.7]} 21... bxc6 {[%clk 0:00:51]} 22. Qc3+ {[%clk
0:00:13.3]} 22... Rf6 {[%clk 0:00:41]} 23. Kf1 {[%clk 0:00:13.4]} 23... Rb8
{[%clk 0:00:32.1]} 24. Bf3 {[%clk 0:00:13.1]} 24... Rb1+ {[%clk 0:00:27.8]} 25.
Kg2 {[%clk 0:00:13.3]} 25... Rxh1 {[%clk 0:00:26.2]} 26. Kxh1 {[%clk 0:00:14.2]}
26... Kg8 {[%clk 0:00:20.5]} 27. Kg2 {[%clk 0:00:13.3]} 27... Qe6 {[%clk
0:00:10.8]} 28. Bg5 {[%clk 0:00:08.4]} 28... Rf7 {[%clk 0:00:08.5]} 29. Bxc6
{[%clk 0:00:08.6]} 29... f4 {[%clk 0:00:06]} 30. Bxf4 {[%clk 0:00:06.9]} 30...
Qxa2 {[%clk 0:00:04.8]} 31. Bf3 {[%clk 0:00:03.9]} 31... Qe6 {[%clk 0:00:03.6]}
32. Qd3 {[%clk 0:00:03.3]} 32... Qf6 {[%clk 0:00:02.9]} 33. Bd2 {[%clk
0:00:02.5]} 33... Kg7 {[%clk 0:00:01.5]} 34. Bc3 {[%clk 0:00:01.7]} 34... g5
{[%clk 0:00:02.4]} 35. Bxf6+ {[%clk 0:00:01.8]} 35... Rxf6 {[%clk 0:00:03.3]}
36. Qd4 {[%clk 0:00:02.7]} 36... g4 {[%clk 0:00:02.7]} 37. Bxg4 {[%clk
0:00:03.1]} 37... Kf7 {[%clk 0:00:03.2]} 38. Bf3 {[%clk 0:00:03.7]} 38... c5
{[%clk 0:00:03.5]} 39. Qc4+ {[%clk 0:00:04]} 39... Kg7 {[%clk 0:00:03.8]} 40.
Qxc5 {[%clk 0:00:04.9]} 40... Rg6 {[%clk 0:00:02.8]} 41. Qxa7+ {[%clk
0:00:04.9]} 41... Kh8 {[%clk 0:00:02.4]} 42. Qe3 {[%clk 0:00:05.8]} 42... Kh7
{[%clk 0:00:03]} 43. Be4 {[%clk 0:00:06]} 43... Kg7 {[%clk 0:00:03.4]} 44. Bxg6
{[%clk 0:00:06.3]} 44... Kg8 {[%clk 0:00:02.5]} 45. Bh7+ {[%clk 0:00:06.7]}
45... Kg7 {[%clk 0:00:02.9]} 46. Qg5+ {[%clk 0:00:06.9]} 46... Kf7 {[%clk
0:00:03.2]} 47. Qg8+ {[%clk 0:00:07.1]} 47... Kf6 {[%clk 0:00:03.5]} 48. Qg6+
{[%clk 0:00:08]} 48... Ke5 {[%clk 0:00:04]} 49. Qf5+ {[%clk 0:00:08.4]} 49...
Kd4 {[%clk 0:00:04.6]} 50. Qe4+ {[%clk 0:00:08.7]} 50... Kc5 {[%clk 0:00:05.5]}
51. Bf5 {[%clk 0:00:07.9]} 51... Kd6 {[%clk 0:00:05.8]} 52. Qd4+ {[%clk
0:00:08.4]} 52... Ke7 {[%clk 0:00:04.9]} 53. Qe5+ {[%clk 0:00:08.4]} 53... Kf7
{[%clk 0:00:05.8]} 54. Qe6+ {[%clk 0:00:08.6]} 54... Kg7 {[%clk 0:00:06.3]} 55.
Qg6+ {[%clk 0:00:08.9]} 55... Kf8 {[%clk 0:00:07.2]} 56. Qf6+ {[%clk 0:00:09]}
56... Ke8 {[%clk 0:00:08.1]} 57. Qg7 {[%clk 0:00:07.5]} 57... Kd8 {[%clk
0:00:09]} 58. Qd7# {[%clk 0:00:07.7]} 1-0

[Event "*** Titled Tuesday Blitz"]
[Site "Chess.com"]
[Date "2021.02.16"]
[Round "7"]
[White "Infernal_XaM"]
[Black "mikolka1985"]
[Result "1-0"]
[WhiteElo "2820"]
[BlackElo "2622"]
[TimeControl "180+1"]
[EndTime "11:19:28 PST"]
[Termination "Infernal_XaM won on time"]

1. d4 {[%clk 0:03:00.9]} 1... Nf6 {[%clk 0:02:59]} 2. c4 {[%clk 0:03:01.8]} 2...
e6 {[%clk 0:02:58.1]} 3. Nc3 {[%clk 0:03:01.9]} 3... Bb4 {[%clk 0:02:56.9]} 4.
Qa4 {[%clk 0:03:01.8]} 4... Bxc3+ {[%clk 0:02:53.4]} 5. bxc3 {[%clk 0:03:01.6]}
5... b6 {[%clk 0:02:47.3]} 6. f3 {[%clk 0:03:01.1]} 6... Nh5 {[%clk 0:02:36.5]}
7. Nh3 {[%clk 0:02:59.3]} 7... f5 {[%clk 0:02:36.1]} 8. Bg5 {[%clk 0:02:55.2]}
8... Nf6 {[%clk 0:02:35.3]} 9. e4 {[%clk 0:02:55.2]} 9... fxe4 {[%clk
0:02:24.8]} 10. fxe4 {[%clk 0:02:55]} 10... h6 {[%clk 0:02:23.7]} 11. Bh4 {[%clk
0:02:54.8]} 11... g5 {[%clk 0:02:19.6]} 12. Bg3 {[%clk 0:02:52.4]} 12... Nxe4
{[%clk 0:02:19.2]} 13. Qc2 {[%clk 0:02:52.2]} 13... Bb7 {[%clk 0:02:15.9]} 14.
Nf2 {[%clk 0:02:50.8]} 14... Nxg3 {[%clk 0:02:09.5]} 15. Qg6+ {[%clk 0:02:49.5]}
15... Kf8 {[%clk 0:02:09.8]} 16. hxg3 {[%clk 0:02:49.7]} 16... Qe7 {[%clk
0:02:03.9]} 17. Ng4 {[%clk 0:02:44.3]} 17... Qg7 {[%clk 0:02:00]} 18. Ne5 {[%clk
0:02:33.6]} 18... Rg8 {[%clk 0:01:26.8]} 19. Qxh6 {[%clk 0:02:04.2]} 19... Qxh6
{[%clk 0:01:24]} 20. Rxh6 {[%clk 0:02:03.8]} 20... d6 {[%clk 0:01:14.3]} 21. Ng4
{[%clk 0:01:59]} 21... Nd7 {[%clk 0:00:54.8]} 22. Bd3 {[%clk 0:01:57.2]} 22...
Re8 {[%clk 0:00:37.9]} 23. Kd2 {[%clk 0:01:52]} 23... Re7 {[%clk 0:00:36.2]} 24.
Bg6 {[%clk 0:01:35.1]} 24... Reg7 {[%clk 0:00:32.7]} 25. Bh5 {[%clk 0:01:06.3]}
25... Ke7 {[%clk 0:00:26.1]} 26. Re1 {[%clk 0:00:47.1]} 26... e5 {[%clk
0:00:19]} 27. dxe5 {[%clk 0:00:43.3]} 27... dxe5 {[%clk 0:00:19.2]} 28. Nxe5
{[%clk 0:00:41.6]} 28... Nxe5 {[%clk 0:00:19.1]} 29. Rxe5+ {[%clk 0:00:42]}
29... Kd8 {[%clk 0:00:20]} 30. Bg4 {[%clk 0:00:36]} 30... Re7 {[%clk 0:00:19.7]}
31. Rxe7 {[%clk 0:00:30]} 31... Kxe7 {[%clk 0:00:19.5]} 32. Rh7+ {[%clk
0:00:30.5]} 32... Kd6 {[%clk 0:00:19.6]} 33. Rd7+ {[%clk 0:00:30.1]} 33... Kc6
{[%clk 0:00:19.1]} 34. Rh7 {[%clk 0:00:24.6]} 34... Ba6 {[%clk 0:00:17.3]} 35.
Be6 {[%clk 0:00:18.2]} 35... Rd8+ {[%clk 0:00:16]} 36. Bd5+ {[%clk 0:00:18.2]}
36... Kd6 {[%clk 0:00:15.6]} 37. Ke3 {[%clk 0:00:18.3]} 37... c6 {[%clk
0:00:14.8]} 38. Rh6+ {[%clk 0:00:18.1]} 38... Ke5 {[%clk 0:00:14.7]} 39. Re6+
{[%clk 0:00:17.4]} 39... Kf5 {[%clk 0:00:14.5]} 40. Rxc6 {[%clk 0:00:17.5]}
40... Re8+ {[%clk 0:00:13.7]} 41. Kf3 {[%clk 0:00:17]} 41... g4+ {[%clk
0:00:13.4]} 42. Kf2 {[%clk 0:00:17.5]} 42... Ke5 {[%clk 0:00:12.7]} 43. Rc7
{[%clk 0:00:17.7]} 43... Rf8+ {[%clk 0:00:11.1]} 44. Ke3 {[%clk 0:00:18.1]}
44... Bc8 {[%clk 0:00:09.6]} 45. Rxa7 {[%clk 0:00:17.8]} 45... Bf5 {[%clk
0:00:09.5]} 46. a4 {[%clk 0:00:17.4]} 46... Rh8 {[%clk 0:00:09]} 47. Rb7 {[%clk
0:00:17.3]} 47... Rh1 {[%clk 0:00:07.9]} 48. Rxb6 {[%clk 0:00:17]} 48... Re1+
{[%clk 0:00:08.4]} 49. Kd2 {[%clk 0:00:17.4]} 49... Ra1 {[%clk 0:00:07.6]} 50.
Rb5 {[%clk 0:00:17]} 50... Ra2+ {[%clk 0:00:05.6]} 51. Ke3 {[%clk 0:00:17.2]}
51... Kf6 {[%clk 0:00:05.8]} 52. a5 {[%clk 0:00:16.7]} 52... Ra3 {[%clk
0:00:04.7]} 53. Kd4 {[%clk 0:00:16.9]} 53... Ra1 {[%clk 0:00:04.6]} 54. Bb7
{[%clk 0:00:16.7]} 54... Bd7 {[%clk 0:00:03.4]} 55. a6 {[%clk 0:00:17]} 55...
Bxb5 {[%clk 0:00:02.8]} 56. cxb5 {[%clk 0:00:17.9]} 56... Ke6 {[%clk 0:00:02.8]}
57. Kc5 {[%clk 0:00:18.1]} 57... Kd7 {[%clk 0:00:01.2]} 58. c4 {[%clk
0:00:18.6]} 1-0

[Event "*** Titled Tuesday Blitz"]
[Site "Chess.com"]
[Date "2021.02.16"]
[Round "7"]
[White "Mihnea2017"]
[Black "Frolyanov_D"]
[Result "0-1"]
[WhiteElo "2465"]
[BlackElo "2658"]
[TimeControl "180+1"]
[EndTime "11:19:32 PST"]
[Termination "Frolyanov_D won by resignation"]

1. e4 {[%clk 0:03:00.9]} 1... c5 {[%clk 0:02:12.7]} 2. Nf3 {[%clk 0:03:00.6]}
2... e6 {[%clk 0:02:12.4]} 3. d4 {[%clk 0:03:00.4]} 3... cxd4 {[%clk 0:02:13.3]}
4. Nxd4 {[%clk 0:03:01.2]} 4... a6 {[%clk 0:02:13.8]} 5. c4 {[%clk 0:03:01.4]}
5... Nf6 {[%clk 0:02:12.6]} 6. Nc3 {[%clk 0:03:01.3]} 6... Qc7 {[%clk 0:02:13]}
7. a3 {[%clk 0:03:00.4]} 7... d6 {[%clk 0:02:10.2]} 8. f3 {[%clk 0:03:00.2]}
8... Be7 {[%clk 0:02:07.8]} 9. Be3 {[%clk 0:03:00.2]} 9... O-O {[%clk
0:02:06.9]} 10. Be2 {[%clk 0:03:00.3]} 10... Nbd7 {[%clk 0:02:06.6]} 11. O-O
{[%clk 0:02:58.8]} 11... b6 {[%clk 0:02:06.6]} 12. b4 {[%clk 0:02:58.5]} 12...
Bb7 {[%clk 0:02:06.5]} 13. Rc1 {[%clk 0:02:55.9]} 13... Rac8 {[%clk 0:02:06.4]}
14. Qd2 {[%clk 0:02:53.4]} 14... Qb8 {[%clk 0:02:06.4]} 15. Kh1 {[%clk
0:02:50.5]} 15... Ne5 {[%clk 0:02:05.9]} 16. Na4 {[%clk 0:02:48.6]} 16... Ba8
{[%clk 0:02:02.7]} 17. Rc2 {[%clk 0:02:41.5]} 17... Bd8 {[%clk 0:01:45.9]} 18.
Nb2 {[%clk 0:02:32.5]} 18... Bc7 {[%clk 0:01:45.7]} 19. Nb3 {[%clk 0:02:27.4]}
19... Rcd8 {[%clk 0:01:44.5]} 20. a4 {[%clk 0:02:22.4]} 20... d5 {[%clk
0:01:36.1]} 21. exd5 {[%clk 0:02:21.2]} 21... exd5 {[%clk 0:01:37]} 22. c5
{[%clk 0:02:21.4]} 22... Nc4 {[%clk 0:01:33.5]} 23. Qc1 {[%clk 0:02:01.4]} 23...
Nxe3 {[%clk 0:01:29.6]} 24. Qxe3 {[%clk 0:02:01.6]} 24... Bxh2 {[%clk
0:01:28.6]} 25. f4 {[%clk 0:01:47.3]} 25... d4 {[%clk 0:01:24.8]} 26. Nxd4
{[%clk 0:01:13.8]} 26... Nd5 {[%clk 0:01:24.7]} 27. Qf2 {[%clk 0:01:03.3]} 27...
Bxf4 {[%clk 0:01:14.4]} 28. c6 {[%clk 0:00:59.3]} 28... Qe5 {[%clk 0:01:03.1]}
29. Nd3 {[%clk 0:00:50.6]} 29... Qf6 {[%clk 0:00:18.9]} 30. Nxf4 {[%clk
0:00:49.2]} 30... Qh6+ {[%clk 0:00:14.4]} 31. Nh5 {[%clk 0:00:42.7]} 31... Nxb4
{[%clk 0:00:15]} 32. Rc3 {[%clk 0:00:39.8]} 32... Nxc6 {[%clk 0:00:14.4]} 33.
Nxc6 {[%clk 0:00:38.2]} 33... Bxc6 {[%clk 0:00:15.3]} 34. Rh3 {[%clk 0:00:38]}
34... Bd7 {[%clk 0:00:14.9]} 35. Rh2 {[%clk 0:00:37.7]} 35... Qg6 {[%clk
0:00:14.7]} 36. Nf4 {[%clk 0:00:35.1]} 36... Qg5 {[%clk 0:00:14.7]} 37. Rh5
{[%clk 0:00:27.9]} 37... Qf6 {[%clk 0:00:14.7]} 38. Nd5 {[%clk 0:00:25.3]} 38...
Qxf2 {[%clk 0:00:14]} 39. Rxf2 {[%clk 0:00:26.2]} 39... h6 {[%clk 0:00:13.5]}
40. Nxb6 {[%clk 0:00:25]} 40... Bc6 {[%clk 0:00:13.4]} 41. Ra5 {[%clk
0:00:23.3]} 41... Rd2 {[%clk 0:00:12.3]} 42. Nc4 {[%clk 0:00:20.2]} 42... Rc2
{[%clk 0:00:11.4]} 43. Rxa6 {[%clk 0:00:18.1]} 43... Bd5 {[%clk 0:00:09.7]} 44.
Ne3 {[%clk 0:00:17.6]} 44... Rc1+ {[%clk 0:00:08.2]} 45. Rf1 {[%clk 0:00:18]}
45... Rxf1+ {[%clk 0:00:07.5]} 46. Bxf1 {[%clk 0:00:18.6]} 46... Be6 {[%clk
0:00:07.2]} 47. Kg1 {[%clk 0:00:18.4]} 47... Rb8 {[%clk 0:00:06.8]} 48. Kf2
{[%clk 0:00:18.3]} 48... Rb2+ {[%clk 0:00:06.6]} 49. Kf3 {[%clk 0:00:18.7]}
49... Rb3 {[%clk 0:00:06.5]} 50. a5 {[%clk 0:00:16.5]} 50... Ra3 {[%clk
0:00:06.6]} 51. Ra8+ {[%clk 0:00:16.1]} 51... Kh7 {[%clk 0:00:06.5]} 52. a6
{[%clk 0:00:17]} 52... Bd5+ {[%clk 0:00:06.4]} 53. Kf4 {[%clk 0:00:17.1]} 53...
Bxa8 {[%clk 0:00:07.2]} 54. Nc4 {[%clk 0:00:17.1]} 54... Ra4 {[%clk 0:00:06.8]}
55. Bd3+ {[%clk 0:00:15.9]} 55... g6 {[%clk 0:00:06.3]} 56. Ke5 {[%clk
0:00:15.6]} 56... Rxa6 {[%clk 0:00:06.2]} 57. Nd6 {[%clk 0:00:16.1]} 57... Ra5+
{[%clk 0:00:06]} 58. Kf6 {[%clk 0:00:16.2]} 58... Rd5 {[%clk 0:00:06.1]} 59.
Nxf7 {[%clk 0:00:11.1]} 0-1